[Event "8th RTU Open 2018"]
[Site "Riga"]
[Date "2018.08.12"]
[Round "9"]
[White "Nikitenko, Mihail"]
[Black "Dragnev, Valentin"]
[Result "0-1"]
[ECO "B29"]
[WhiteElo "2374"]
[BlackElo "2509"]
[Annotator "ChessBase"]
[PlyCount "88"]
[EventDate "2018.08.06"]
[EventType "swiss"]
[EventCountry "LAT"]
[SourceTitle "playchess.com"]
[Source "ChessBase"]
[SourceQuality "1"]
[TimeControl "5400+30"]

1. e4 {[%emt 0:00:00]} c5 {[%emt 0:00:00]} 2. Nf3 {[%emt 0:00:00]} Nf6 {[%emt 0:00:17]} 3. e5 {[%emt 0:10:00]} Nd5 {[%emt 0:00:15]} 4. b3 {[%emt 0:04:54]} g6 {[%emt 0:01:55]} 5. h4 {[%emt 0:00:59]} h6 {[%emt 0:05:08]} 6. Qe2 {[%emt 0:09:05]} Nc6 {[%emt 0:11:19]} 7. Bb2 {[%emt 0:00:56]} Bg7 {[%emt 0:08:23]} 8. Na3 {[%emt 0:12:27]} d6 {[%emt 0:15:27]} 9. Nc4 {[%emt 0:00:05]} Be6 {[%emt 0:01:11]} 10. a3 {[%emt 0:27:10]} Rb8 {[%emt 0:10:53]} 11. Qe4 {[%emt 0:09:03]} b5 {[%emt 0:09:01]} 12. Ne3 {[%emt 0:00:22]} dxe5 {[%emt 0:00:38]} 13. c4 {[%emt 0:06:40]} f5 {[%emt 0:01:37]} 14. Qc2 {[%emt 0:00:10]} Nxe3 {[%emt 0:10:43]} 15. dxe3 {[%emt 0:00:05]} b4 {[%emt 0:00:43]} 16. axb4 {[%emt 0:06:56]} Nxb4 {[%emt 0:02:01]} 17. Qb1 {[%emt 0:00:18]} Qc7 {[%emt 0:01:01]} 18. Bc3 {[%emt 0:03:21]} O-O {[%emt 0:01:01]} 19. Qb2 {[%emt 0:00:02]} Nc6 {[%emt 0:00:15]} 20. Be2 {[%emt 0:00:32]} Rf7 {[%emt 0:03:55]} 21. h5 {[%emt 0:04:00]} g5 {[%emt 0:00:26]} 22. g4 {[%emt 0:00:03]} fxg4 {[%emt 0:02:18]} 23. Nd2 {[%emt 0:01:00]} Bf5 {[%emt 0:01:13]} 24. Rg1 {[%emt 0:00:17]} Nb4 {[%emt 0:00:15]} 25. Bxb4 {[%emt 0:02:24]} cxb4 {[%emt 0:01:50]} 26. e4 {[%emt 0:00:51]} Bd7 {[%emt 0:01:45]} 27. Nf1 {[%emt 0:00:20]} Rf4 {[%emt 0:00:42]} 28. Ne3 {[%emt 0:00:56]} Rxe4 {[%emt 0:00:25]} 29. Qc2 {[%emt 0:00:05]} Rd4 {[%emt 0:01:12]} 30. Bxg4 {[%emt 0:01:23]} e4 {[%emt 0:01:40]} 31. Rd1 {[%emt 0:00:32]} Qh2 {[%emt 0:02:32]} 32. Ke2 {[%emt 0:00:28]} Rf8 {[%emt 0:00:23]} 33. Rdf1 Bxg4+ {[%emt 0:01:09]} 34. Rxg4 {[%emt 0:00:38]} Rf4 {[%emt 0:00:41]} 35. c5 {[%emt 0:00:37]} Qxh5 {[%emt 0:00:26]} 36. c6 {[%emt 0:00:04]} Rxg4 {[%emt 0:02:08]} 37. c7 {[%emt 0:00:02]} Rf4+ {[%emt 0:00:53]} 38. Ke1 {[%emt 0:00:03]} Rf8 {[%emt 0:00:12]} 39. c8=Q {[%emt 0:00:33]} Rxc8 {[%emt 0:00:04]} 40. Qxc8+ {[%emt 0:00:03]} Kh7 {[%emt 0:00:18]} 41. Rg1 {[%emt 0:00:58]} Rd3 {[%emt 0:00:46]} 42. Qc5 {[%emt 0:00:48]} Rxb3 {[%emt 0:01:11]} 43. Qc2 {[%emt 0:00:49]} Rd3 {[%emt 0:00:45]} 44. Qc4 {[%emt 0:00:13]} Rxe3+ {[%emt 0:00:33]} 0-1

[Event "8th RTU Open 2018"]
[Site "Riga"]
[Date "2018.08.12"]
[Round "9"]
[White "Hedman, Erik"]
[Black "Thybo, Jesper Sondergaard"]
[Result "0-1"]
[ECO "E10"]
[WhiteElo "2370"]
[BlackElo "2496"]
[Annotator "RC"]
[PlyCount "70"]
[EventDate "2018.08.06"]
[EventType "swiss"]
[EventCountry "LAT"]
[SourceTitle "playchess.com"]
[Source "ChessBase"]
[SourceQuality "1"]
[TimeControl "5400+30"]

1. d4 {[%emt 0:00:00]} Nf6 {[%emt 0:00:00]} 2. c4 {[%emt 0:00:00]} e6 {[%emt 0:00:00]} 3. Nf3 {[%emt 0:00:00]} d5 {[%emt 0:00:00]} 4. g3 {[%emt 0:00:13]} Bb4+ {[%emt 0:00:00]} 5. Bd2 {[%emt 0:00:10]} Be7 {[%emt 0:00:00]} 6. Bg2 {[%emt 0:00:08]} O-O {[%emt 0:00:00]} 7. O-O {[%emt 0:00:17]} Nbd7 {[%emt 0:00:03]} 8. Qc2 {[%emt 0:00:14]} c6 {[%emt 0:00:05]} 9. Bf4 {[%emt 0:00:28]} b6 {[%emt 0:00:33]} 10. Rd1 {[%emt 0:00:36]} Ba6 {[%emt 0:02:26]} 11. Ne5 {[%emt 0:01:02]} Rc8 {[%emt 0:01:09]} 12. cxd5 {[%emt 0:09:15]} Nxd5 {[%emt 0:00:30]} 13. Nc3 {[%emt 0:06:37]} Nxe5 {[%emt 0:01:45]} 14. Bxe5 {[%emt 0:03:55]} f6 {[%emt 0:00:49]} 15. Bf4 {[%emt 0:00:07]} Nxf4 {[%emt 0:00:03]} 16. gxf4 {[%emt 0:00:05]} f5 {[%emt 0:00:04]} 17. Qa4 {[%emt 0:09:08]} Bb7 {[%emt 0:01:02]} 18. Qxa7 {[%emt 0:00:23]} Qc7 {[%emt 0:00:31]} 19. Nb5 {[%emt 0:00:10]} Qd7 {[%emt 0:00:39]} 20. Nc3 {[%emt 0:03:05]} Qc7 {[%emt 0:03:00]} 21. Nb5 {[%emt 0:00:17]} Qd7 {[%emt 0:01:54]} 22. Nc3 {[%emt 0:02:28]} Bd8 {[%emt 0:03:28]} 23. Qa4 {[%emt 0:08:39]} Ra8 {[%emt 0:22:43]} 24. Qb3 {[%emt 0:01:11]} Rf6 {[%emt 0:00:05]} 25. Rd3 {[%emt 0:17:57]} Qd6 {[%emt 0:06:13]} 26. Rad1 {[%emt 0:03:49]} Bc7 {[%emt 0:11:19]} 27. d5 {[%emt 0:10:35]} cxd5 {[%emt 0:04:50]} 28. e3 {[%emt 0:06:03]} Rg6 {[%emt 0:11:19]} 29. Nb5 {[%emt 0:02:05]} Qe7 {[%emt 0:01:36]} 30. Nd4 {[%emt 0:05:34]} Qh4 {[%emt 0:03:10]} 31. R3d2 {[%emt 0:00:43]} Rh6 {[%emt 0:05:49]} 32. Nf3 {[%emt 0:00:35]} Qh5 {[%emt 0:01:06]} 33. Rd4 {[%emt 0:03:32]} Rg6 {[%emt 0:01:27]} 34. Ne1 {[%emt 0:01:04]} Ba6 {[%emt 0:01:42]} 35. R4d2 {[%emt 0:04:07]} Be2 {[%emt 0:02:31]} 0-1

[Event "8th RTU Open 2018"]
[Site "Riga"]
[Date "2018.08.12"]
[Round "9"]
[White "Jablonicky, Martin"]
[Black "Adocchio, Giampiero"]
[Result "1/2-1/2"]
[ECO "A06"]
[WhiteElo "2361"]
[BlackElo "2136"]
[Annotator "NA"]
[PlyCount "82"]
[EventDate "2018.08.06"]
[EventType "swiss"]
[EventCountry "LAT"]
[SourceTitle "playchess.com"]
[Source "ChessBase"]
[SourceQuality "1"]
[TimeControl "5400+30"]

1. Nf3 {[%emt 0:07:31]} d5 {[%emt 0:00:00]} 2. g3 {[%emt 0:00:18]} Bg4 {[%emt 0:00:00]} 3. Bg2 {[%emt 0:00:07]} Nd7 {[%emt 0:00:03]} 4. O-O {[%emt 0:00:25]} e6 {[%emt 0:01:10]} 5. d3 {[%emt 0:01:01]} Ngf6 {[%emt 0:01:47]} 6. Nbd2 {[%emt 0:00:08]} Be7 {[%emt 0:03:16]} 7. e4 {[%emt 0:00:09]} dxe4 {[%emt 0:07:38]} 8. dxe4 {[%emt 0:00:07]} O-O {[%emt 0:03:24]} 9. Qe2 {[%emt 0:00:21]} Ne5 {[%emt 0:04:49]} 10. Rd1 {[%emt 0:01:44]} Qc8 {[%emt 0:06:11]} 11. h3 {[%emt 0:00:18]} Nxf3+ {[%emt 0:07:14]} 12. Nxf3 {[%emt 0:00:09]} Bxf3 {[%emt 0:00:54]} 13. Bxf3 {[%emt 0:00:50]} e5 {[%emt 0:00:32]} 14. Kg2 {[%emt 0:00:05]} c6 {[%emt 0:05:46]} 15. Be3 {[%emt 0:04:19]} Qc7 {[%emt 0:03:49]} 16. g4 {[%emt 0:01:50]} Rfd8 {[%emt 0:03:08]} 17. g5 {[%emt 0:01:47]} Nd7 {[%emt 0:02:02]} 18. Bg4 {[%emt 0:00:23]} Nf8 {[%emt 0:01:41]} 19. h4 {[%emt 0:01:31]} Rxd1 {[%emt 0:02:02]} 20. Rxd1 {[%emt 0:00:04]} Rd8 {[%emt 0:00:38]} 21. h5 {[%emt 0:04:37]} Rxd1 {[%emt 0:03:12]} 22. Qxd1 {[%emt 0:00:01]} b6 {[%emt 0:00:56]} 23. Kh3 {[%emt 0:03:00]} g6 {[%emt 0:05:45]} 24. hxg6 {[%emt 0:00:50]} hxg6 {[%emt 0:00:44]} 25. Kh4 {[%emt 0:05:40]} Bd6 {[%emt 0:05:38]} 26. Qd3 {[%emt 0:02:41]} Qe7 {[%emt 0:03:10]} 27. Qc4 {[%emt 0:00:54]} c5 {[%emt 0:00:43]} 28. Qd5 {[%emt 0:00:47]} Kg7 {[%emt 0:00:37]} 29. Bd2 {[%emt 0:06:07]} Nh7 {[%emt 0:00:18]} 30. Kh3 {[%emt 0:08:41]} Bc7 {[%emt 0:04:51]} 31. Qd7 {[%emt 0:00:50]} Bd8 {[%emt 0:00:48]} 32. Qxe7 {[%emt 0:00:11]} Bxe7 {[%emt 0:00:04]} 33. Kh4 {[%emt 0:00:09]} f6 {[%emt 0:01:39]} 34. gxf6+ {[%emt 0:00:47]} Nxf6 {[%emt 0:00:04]} 35. Bg5 {[%emt 0:00:05]} Nxg4 {[%emt 0:00:30]} 36. Kxg4 {[%emt 0:00:06]} Bxg5 {[%emt 0:00:07]} 37. Kxg5 {[%emt 0:00:04]} b5 {[%emt 0:03:28]} 38. b3 {[%emt 0:01:28]} b4 {[%emt 0:00:37]} 39. Kh4 {[%emt 0:00:56]} Kf7 {[%emt 0:05:39]} 40. Kg5 {[%emt 0:00:08]} Kg7 {[%emt 0:00:06]} 41. Kh4 {[%emt 0:00:05]} Kf7 1/2-1/2

[Event "8th RTU Open 2018"]
[Site "Riga"]
[Date "2018.08.12"]
[Round "9"]
[White "Oboladze, Luka"]
[Black "Player, Edmund C"]
[Result "1-0"]
[ECO "A48"]
[WhiteElo "2349"]
[BlackElo "2194"]
[Annotator "NA"]
[PlyCount "111"]
[EventDate "2018.08.06"]
[EventType "swiss"]
[EventCountry "LAT"]
[SourceTitle "playchess.com"]
[Source "ChessBase"]
[SourceQuality "1"]
[TimeControl "5400+30"]

1. d4 {[%emt 0:00:00]} Nf6 {[%emt 0:00:00]} 2. Nf3 {[%emt 0:00:34]} g6 {[%emt 0:01:30]} 3. Bf4 {[%emt 0:00:21]} b6 {[%emt 0:06:51]} 4. e3 {[%emt 0:00:40]} Bb7 {[%emt 0:03:52]} 5. Be2 {[%emt 0:00:24]} d6 {[%emt 0:02:02]} 6. h3 {[%emt 0:01:58]} Nbd7 {[%emt 0:01:54]} 7. O-O {[%emt 0:00:59]} Bg7 {[%emt 0:00:22]} 8. a4 {[%emt 0:01:50]} a6 {[%emt 0:02:44]} 9. Nbd2 {[%emt 0:10:40]} O-O {[%emt 0:01:41]} 10. c3 {[%emt 0:01:43]} Ne4 {[%emt 0:09:38]} 11. Nxe4 {[%emt 0:09:10]} Bxe4 {[%emt 0:00:03]} 12. Nd2 {[%emt 0:01:37]} Bb7 {[%emt 0:00:10]} 13. e4 {[%emt 0:00:23]} e5 {[%emt 0:06:57]} 14. Be3 {[%emt 0:00:30]} exd4 {[%emt 0:15:48]} 15. cxd4 {[%emt 0:00:14]} c5 {[%emt 0:01:35]} 16. Nc4 {[%emt 0:06:47]} Qe7 {[%emt 0:19:23]} 17. d5 {[%emt 0:09:16]} b5 {[%emt 0:04:35]} 18. Na5 {[%emt 0:01:38]} Nb6 {[%emt 0:08:54]} 19. Qb3 {[%emt 0:12:09]} Rab8 {[%emt 0:07:58]} 20. axb5 {[%emt 0:05:38]} axb5 {[%emt 0:00:01]} 21. Qxb5 {[%emt 0:03:43]} Ba8 {[%emt 0:00:06]} 22. Qd3 {[%emt 0:02:00]} Rfe8 {[%emt 0:00:45]} 23. Nc6 {[%emt 0:03:27]} Bxc6 {[%emt 0:00:26]} 24. dxc6 {[%emt 0:00:04]} Qc7 {[%emt 0:01:42]} 25. Rad1 {[%emt 0:03:12]} Qxc6 {[%emt 0:02:20]} 26. b3 {[%emt 0:02:26]} Be5 {[%emt 0:01:10]} 27. f4 {[%emt 0:00:55]} Bg7 {[%emt 0:00:27]} 28. Bf3 {[%emt 0:01:04]} c4 {[%emt 0:00:32]} 29. Qc2 {[%emt 0:01:01]} Qb5 {[%emt 0:00:29]} 30. bxc4 {[%emt 0:02:43]} Nxc4 {[%emt 0:00:01]} 31. Bf2 {[%emt 0:00:14]} Rec8 {[%emt 0:00:26]} 32. Rb1 {[%emt 0:02:40]} Nb2 {[%emt 0:00:11]} 33. Qd2 {[%emt 0:00:08]} Nc4 {[%emt 0:01:05]} 34. Qd3 {[%emt 0:00:36]} Nb2 {[%emt 0:00:40]} 35. Qxd6 {[%emt 0:00:31]} Rd8 {[%emt 0:00:20]} 36. Qc7 {[%emt 0:02:59]} Rdc8 {[%emt 0:00:24]} 37. Qe7 {[%emt 0:01:04]} Re8 {[%emt 0:00:53]} 38. Qc5 {[%emt 0:00:48]} Qxc5 {[%emt 0:00:32]} 39. Bxc5 {[%emt 0:00:04]} Rec8 {[%emt 0:00:29]} 40. Bd6 {[%emt 0:01:06]} Bd4+ {[%emt 0:00:27]} 41. Kh2 {[%emt 0:00:20]} Rb6 {[%emt 0:00:12]} 42. e5 {[%emt 0:00:13]} Nc4 {[%emt 0:00:35]} 43. Rxb6 {[%emt 0:01:44]} Bxb6 {[%emt 0:00:04]} 44. Bb4 {[%emt 0:00:30]} Be3 {[%emt 0:00:26]} 45. Bd5 {[%emt 0:01:16]} Rb8 {[%emt 0:01:16]} 46. Bc3 {[%emt 0:04:04]} Nd2 {[%emt 0:00:12]} 47. Re1 {[%emt 0:01:36]} Bxf4+ {[%emt 0:00:26]} 48. g3 {[%emt 0:00:03]} Rd8 {[%emt 0:00:42]} 49. e6 {[%emt 0:02:11]} fxe6 {[%emt 0:00:39]} 50. Bxe6+ {[%emt 0:00:04]} Kf8 {[%emt 0:00:08]} 51. Kg2 {[%emt 0:01:12]} Bg5 {[%emt 0:00:37]} 52. h4 {[%emt 0:00:40]} Bh6 {[%emt 0:00:42]} 53. Ba2 {[%emt 0:01:54]} Rd7 {[%emt 0:00:33]} 54. Bb4+ {[%emt 0:00:38]} Kg7 {[%emt 0:00:04]} 55. Re8 {[%emt 0:00:20]} Ra7 {[%emt 0:00:55]} 56. Bc3# {[%emt 0:00:15] Rc7 Bb4 g5 h5 Rd7} 1-0

[Event "8th RTU Open 2018"]
[Site "Riga"]
[Date "2018.08.12"]
[Round "9"]
[White "Quillan, Gary"]
[Black "Schroeder, Jan Christian"]
[Result "0-1"]
[ECO "C91"]
[WhiteElo "2349"]
[BlackElo "2573"]
[Annotator "ChessBase"]
[PlyCount "90"]
[EventDate "2018.08.06"]
[EventType "swiss"]
[EventCountry "LAT"]
[SourceTitle "playchess.com"]
[Source "ChessBase"]
[SourceQuality "1"]
[TimeControl "5400+30"]

1. e4 {[%emt 0:00:22]} e5 {[%emt 0:00:00]} 2. Nf3 {[%emt 0:00:22]} Nc6 {[%emt 0:00:00]} 3. Bb5 {[%emt 0:00:05]} a6 {[%emt 0:00:00]} 4. Ba4 {[%emt 0:00:04]} Nf6 {[%emt 0:00:00]} 5. O-O {[%emt 0:00:07]} Be7 {[%emt 0:00:00]} 6. Re1 {[%emt 0:00:05]} b5 {[%emt 0:00:00]} 7. Bb3 {[%emt 0:00:04]} d6 {[%emt 0:00:00]} 8. c3 {[%emt 0:00:06]} O-O {[%emt 0:00:00]} 9. d4 {[%emt 0:00:05]} Bg4 {[%emt 0:00:04]} 10. d5 {[%emt 0:00:05]} Na5 {[%emt 0:00:03]} 11. Bc2 {[%emt 0:00:04]} Qc8 {[%emt 0:00:02]} 12. h3 {[%emt 0:00:28]} Bd7 {[%emt 0:00:05]} 13. Nbd2 {[%emt 0:00:07]} c6 {[%emt 0:00:03]} 14. dxc6 {[%emt 0:00:05]} Qxc6 {[%emt 0:00:04]} 15. Nf1 {[%emt 0:00:11]} Rfc8 {[%emt 0:00:04]} 16. Bd3 {[%emt 0:02:30]} Nb7 {[%emt 0:00:47]} 17. Bg5 {[%emt 0:01:57]} Nc5 {[%emt 0:08:26]} 18. Bc2 {[%emt 0:02:49]} h6 {[%emt 0:07:57]} 19. Bxf6 {[%emt 0:00:50]} Bxf6 {[%emt 0:00:17]} 20. Ne3 {[%emt 0:11:44]} Be6 {[%emt 0:01:39]} 21. Nd5 {[%emt 0:18:44]} Bxd5 {[%emt 0:05:51]} 22. exd5 {[%emt 0:00:27]} Qc7 {[%emt 0:01:56]} 23. a4 {[%emt 0:02:19]} g6 {[%emt 0:10:59]} 24. Ra3 {[%emt 0:11:10]} Kg7 {[%emt 0:01:55]} 25. Qd2 {[%emt 0:12:32]} Qb7 {[%emt 0:05:38]} 26. a5 {[%emt 0:09:30]} Nd7 {[%emt 0:01:19]} 27. b4 {[%emt 0:00:48]} Rc7 {[%emt 0:01:03]} 28. h4 {[%emt 0:03:45]} h5 {[%emt 0:01:13]} 29. Ng5 {[%emt 0:00:31]} Rac8 {[%emt 0:08:56]} 30. Re3 {[%emt 0:03:25]} Rc4 {[%emt 0:07:53]} 31. Ne4 {[%emt 0:03:43]} Be7 {[%emt 0:00:04]} 32. Bb3 {[%emt 0:00:18]} R4c7 {[%emt 0:00:05]} 33. Ng5 {[%emt 0:00:26]} Nf6 {[%emt 0:05:35]} 34. Rf3 {[%emt 0:03:59]} e4 {[%emt 0:05:58]} 35. Rg3 {[%emt 0:01:00]} Qa7 {[%emt 0:06:19]} 36. Bc2 {[%emt 0:02:25]} Rc4 {[%emt 0:01:37]} 37. Bb3 {[%emt 0:00:14]} Qb7 {[%emt 0:04:54]} 38. Bxc4 {[%emt 0:03:01]} Rxc4 {[%emt 0:00:02]} 39. Ra1 {[%emt 0:02:38]} Qxd5 {[%emt 0:00:29]} 40. Qxd5 {[%emt 0:02:44]} Nxd5 {[%emt 0:00:05]} 41. Kf1 {[%emt 0:02:32]} f5 {[%emt 0:04:55]} 42. Rd1 {[%emt 0:01:16]} Nxc3 {[%emt 0:06:39]} 43. Rc1 {[%emt 0:00:23]} Bf6 {[%emt 0:00:04]} 44. f4 {[%emt 0:01:26]} d5 {[%emt 0:01:23]} 45. Ke1 {[%emt 0:00:30]} d4 {[%emt 0:00:28]} 0-1

[Event "8th RTU Open 2018"]
[Site "Riga"]
[Date "2018.08.12"]
[Round "9"]
[White "Dhulipalla, Bala Chandra Prasad"]
[Black "Kulaots, Kaido"]
[Result "0-1"]
[ECO "A40"]
[WhiteElo "2333"]
[BlackElo "2554"]
[Annotator "ChessBase"]
[PlyCount "66"]
[EventDate "2018.08.06"]
[EventType "swiss"]
[EventCountry "LAT"]
[SourceTitle "playchess.com"]
[Source "ChessBase"]
[SourceQuality "1"]
[TimeControl "5400+30"]

1. d4 {[%emt 0:00:00]} g6 {[%emt 0:00:00]} 2. c4 {[%emt 0:00:28]} Bg7 {[%emt 0:02:38]} 3. g3 {[%emt 0:00:15]} e6 {[%emt 0:03:07]} 4. Nf3 {[%emt 0:00:25]} d5 {[%emt 0:00:13]} 5. Bg2 {[%emt 0:00:53]} Ne7 {[%emt 0:00:22]} 6. O-O {[%emt 0:00:16]} O-O {[%emt 0:00:23]} 7. Qc2 {[%emt 0:00:17]} b6 {[%emt 0:06:51]} 8. Bf4 {[%emt 0:15:10]} Ba6 {[%emt 0:13:49]} 9. Na3 {[%emt 0:04:47]} Nbc6 {[%emt 0:03:41]} 10. Qa4 {[%emt 0:07:23]} Bb7 {[%emt 0:04:19]} 11. Rfd1 {[%emt 0:07:01]} a6 {[%emt 0:01:00]} 12. Rac1 {[%emt 0:06:42]} b5 {[%emt 0:05:45]} 13. cxb5 {[%emt 0:01:01]} axb5 {[%emt 0:00:04]} 14. Qb3 {[%emt 0:01:44]} b4 {[%emt 0:02:35]} 15. Nb5 {[%emt 0:01:40]} Ba6 {[%emt 0:00:39]} 16. Rc5 {[%emt 0:10:56]} Qd7 {[%emt 0:10:54]} 17. e3 {[%emt 0:03:30]} Rfb8 {[%emt 0:26:21]} 18. Bf1 {[%emt 0:10:05]} Rb7 {[%emt 0:03:22]} 19. Rdc1 {[%emt 0:03:52]} f6 {[%emt 0:04:17]} 20. Qa4 {[%emt 0:09:21]} e5 {[%emt 0:07:11]} 21. dxe5 {[%emt 0:01:14]} fxe5 {[%emt 0:00:04]} 22. Bg5 {[%emt 0:01:36]} e4 {[%emt 0:02:15]} 23. Nbd4 {[%emt 0:10:59]} Bxf1 {[%emt 0:00:35]} 24. Qxa8+ {[%emt 0:00:08]} Rb8 {[%emt 0:00:03]} 25. Qxb8+ {[%emt 0:00:28]} Nxb8 {[%emt 0:00:06]} 26. Rxc7 {[%emt 0:00:57]} Qh3 {[%emt 0:00:04]} 27. Nh4 {[%emt 0:00:59]} Bxd4 {[%emt 0:00:49]} 28. Rxf1 {[%emt 0:01:18]} Nec6 {[%emt 0:00:32]} 29. exd4 {[%emt 0:00:18]} Nxd4 {[%emt 0:00:10]} 30. Re1 {[%emt 0:00:16]} Nbc6 {[%emt 0:01:41]} 31. f3 {[%emt 0:00:50]} Ne5 {[%emt 0:00:20]} 32. Rf1 {[%emt 0:00:38]} Nexf3+ {[%emt 0:00:28]} 33. Nxf3 {[%emt 0:00:14]} Nxf3+ {[%emt 0:00:06]} 0-1

[Event "8th RTU Open 2018"]
[Site "Riga"]
[Date "2018.08.12"]
[Round "9"]
[White "Vaishali R"]
[Black "Duzhakov, Ilya"]
[Result "1/2-1/2"]
[ECO "B13"]
[WhiteElo "2294"]
[BlackElo "2441"]
[Annotator "NA"]
[PlyCount "48"]
[EventDate "2018.08.06"]
[EventType "swiss"]
[EventCountry "LAT"]
[SourceTitle "playchess.com"]
[Source "ChessBase"]
[SourceQuality "1"]
[TimeControl "5400+30"]

1. e4 {[%emt 0:00:00]} c6 {[%emt 0:00:00]} 2. d4 {[%emt 0:00:00]} d5 {[%emt 0:00:00]} 3. exd5 {[%emt 0:00:22]} cxd5 {[%emt 0:00:03]} 4. Bd3 {[%emt 0:00:05]} Nc6 {[%emt 0:00:20]} 5. c3 {[%emt 0:00:02]} Nf6 {[%emt 0:00:23]} 6. Bf4 {[%emt 0:01:03]} Bg4 {[%emt 0:02:02]} 7. Qb3 {[%emt 0:00:07]} Qc8 {[%emt 0:05:24]} 8. Nd2 {[%emt 0:01:19]} e6 {[%emt 0:00:18]} 9. Ngf3 {[%emt 0:00:49]} Be7 {[%emt 0:00:19]} 10. O-O {[%emt 0:00:58]} O-O {[%emt 0:00:38]} 11. Rfe1 {[%emt 0:00:54]} Bh5 {[%emt 0:03:35]} 12. Ne5 {[%emt 0:02:25]} Nxe5 {[%emt 0:01:39]} 13. Bxe5 {[%emt 0:02:51]} Qc6 {[%emt 0:06:40]} 14. a4 {[%emt 0:07:09]} a6 {[%emt 0:01:54]} 15. a5 {[%emt 0:06:23]} Nd7 {[%emt 0:07:57]} 16. Bf4 {[%emt 0:13:08]} Rfc8 {[%emt 0:09:34]} 17. Rec1 {[%emt 0:04:15]} Bd6 {[%emt 0:04:38]} 18. Bxd6 {[%emt 0:02:11]} Qxd6 {[%emt 0:01:08]} 19. Re1 {[%emt 0:01:45]} Rab8 {[%emt 0:04:20]} 20. Qa3 {[%emt 0:05:17]} Rc6 {[%emt 0:08:56]} 21. Qxd6 {[%emt 0:05:15]} Rxd6 {[%emt 0:00:14]} 22. Ra3 {[%emt 0:00:26]} Bg6 {[%emt 0:06:34]} 23. Bf1 {[%emt 0:04:12]} Rc6 {[%emt 0:03:22]} 24. f4 {[%emt 0:07:14]} Kf8 {[%emt 0:05:29]} 1/2-1/2

[Event "8th RTU Open 2018"]
[Site "Riga"]
[Date "2018.08.12"]
[Round "9"]
[White "Vovk, Ilja"]
[Black "Leenhouts, Koen"]
[Result "0-1"]
[ECO "B20"]
[WhiteElo "2294"]
[BlackElo "2475"]
[Annotator "ChessBase"]
[PlyCount "88"]
[EventDate "2018.08.06"]
[EventType "swiss"]
[EventCountry "LAT"]
[SourceTitle "playchess.com"]
[Source "ChessBase"]
[SourceQuality "1"]
[TimeControl "5400+30"]

1. e4 {[%emt 0:00:00]} c5 {[%emt 0:00:00]} 2. d3 {[%emt 0:00:00]} Nc6 {[%emt 0:00:22]} 3. f4 {[%emt 0:00:00]} e6 {[%emt 0:01:09]} 4. Nf3 {[%emt 0:00:00]} d5 {[%emt 0:00:13]} 5. Be2 {[%emt 0:00:05]} b6 {[%emt 0:01:35]} 6. c3 {[%emt 0:01:29]} Bb7 {[%emt 0:00:23]} 7. O-O {[%emt 0:00:49]} Bd6 {[%emt 0:03:56]} 8. e5 {[%emt 0:06:39]} Bc7 {[%emt 0:00:57]} 9. d4 {[%emt 0:00:42]} Nge7 {[%emt 0:03:31]} 10. Na3 {[%emt 0:01:30]} Qd7 {[%emt 0:05:09]} 11. Nc2 {[%emt 0:09:56]} c4 {[%emt 0:01:03]} 12. Ne3 {[%emt 0:01:59]} b5 {[%emt 0:02:33]} 13. Qc2 {[%emt 0:21:26]} h6 {[%emt 0:03:37]} 14. Nh4 {[%emt 0:03:26]} g6 {[%emt 0:09:56]} 15. Ng4 {[%emt 0:11:23]} Ng8 {[%emt 0:00:34]} 16. Be3 {[%emt 0:03:54]} h5 {[%emt 0:03:32]} 17. Nf2 {[%emt 0:08:13]} Nh6 {[%emt 0:00:56]} 18. f5 {[%emt 0:11:49]} Nxf5 {[%emt 0:02:20]} 19. Nxf5 {[%emt 0:03:07]} gxf5 {[%emt 0:00:47]} 20. Bg5 {[%emt 0:01:02]} Bd8 {[%emt 0:03:31]} 21. Bxd8 {[%emt 0:00:05]} Qxd8 {[%emt 0:00:09]} 22. Nh3 {[%emt 0:00:11]} Qb6 {[%emt 0:03:10]} 23. Nf4 {[%emt 0:03:00]} Nxe5 {[%emt 0:00:47]} 24. Bxh5 {[%emt 0:03:05]} O-O-O {[%emt 0:02:15]} 25. Qe2 {[%emt 0:02:27]} f6 {[%emt 0:11:53]} 26. Rad1 {[%emt 0:04:20]} Rd6 {[%emt 0:08:51]} 27. Kh1 {[%emt 0:01:47]} Nd7 {[%emt 0:00:08]} 28. Rde1 {[%emt 0:00:45]} Nf8 {[%emt 0:00:48]} 29. Qf3 {[%emt 0:00:43]} Kb8 {[%emt 0:04:14]} 30. Re2 {[%emt 0:00:29]} Qc7 {[%emt 0:01:06]} 31. Rfe1 {[%emt 0:00:24]} Bc8 {[%emt 0:00:28]} 32. Qg3 {[%emt 0:00:25]} Rd7 {[%emt 0:00:48]} 33. h3 {[%emt 0:00:43]} Rg7 {[%emt 0:00:27]} 34. Qe3 {[%emt 0:00:23]} Rg5 {[%emt 0:01:57]} 35. Bf3 {[%emt 0:00:40]} Rh4 {[%emt 0:00:13]} 36. Nxd5 {[%emt 0:00:20]} exd5 {[%emt 0:00:10]} 37. Qe8 {[%emt 0:00:29]} Nd7 {[%emt 0:03:06]} 38. Re7 {[%emt 0:00:01]} Rg3 {[%emt 0:01:18]} 39. Bxd5 {[%emt 0:01:08]} Rgxh3+ {[%emt 0:05:34]} 40. gxh3 {[%emt 0:00:01]} Rxh3+ {[%emt 0:00:10]} 41. Kg1 {[%emt 0:00:36]} Qh2+ {[%emt 0:00:05]} 42. Kf1 {[%emt 0:00:01]} Rg3 {[%emt 0:00:09]} 43. Qg8 {[%emt 0:01:27]} Rxg8 {[%emt 0:01:06]} 44. Bxg8 {[%emt 0:00:08]} Qf4+ {[%emt 0:00:06]} 0-1